[Event "Konyaalti Open-A 2019"]
[Site "Konyaalti"]
[Date "2019.11.21"]
[Round "8.4"]
[White "Gadimbayli, Abdulla"]
[Black "Solozhenkin, Evgeniy"]
[Result "1-0"]
[ECO "C92"]
[WhiteElo "2447"]
[BlackElo "2387"]
[Annotator "ChessBase"]
[PlyCount "83"]
[EventDate "2019.11.20"]
[EventType "swiss"]
[EventCountry "TUR"]
[SourceTitle "playchess.com"]
[Source "ChessBase"]
[SourceQuality "1"]
[TimeControl "5400+30"]

1. e4 {[%emt 0:18:30]} e5 {[%emt 0:00:30]} 2. Nf3 {[%emt 0:00:30]} Nc6 {[%emt 0:00:30]} 3. Bb5 {[%emt 0:00:30]} a6 {[%emt 0:00:00]} 4. Ba4 {[%emt 0:00:00]} Nf6 {[%emt 0:00:00]} 5. O-O {[%emt 0:00:00]} Be7 {[%emt 0:00:00]} 6. Re1 {[%emt 0:00:00]} b5 {[%emt 0:00:00]} 7. Bb3 {[%emt 0:00:00]} d6 {[%emt 0:00:30]} 8. c3 {[%emt 0:00:30]} O-O {[%emt 0:00:00]} 9. h3 {[%emt 0:00:00]} Re8 {[%emt 0:00:00]} 10. d4 {[%emt 0:01:00]} Bb7 {[%emt 0:00:30]} 11. Nbd2 {[%emt 0:01:30]} Bf8 {[%emt 0:00:30]} 12. d5 {[%emt 0:03:30]} Nb8 {[%emt 0:00:30]} 13. Nf1 {[%emt 0:09:30]} Nbd7 {[%emt 0:00:00]} 14. Ng3 {[%emt 0:01:30]} Nc5 {[%emt 0:02:00]} 15. Bc2 {[%emt 0:00:30]} c6 {[%emt 0:00:30]} 16. b4 {[%emt 0:04:30]} Ncd7 {[%emt 0:00:00]} 17. dxc6 {[%emt 0:07:30]} Bxc6 {[%emt 0:00:00]} 18. Bb3 {[%emt 0:11:30]} h6 {[%emt 0:13:30]} 19. Be3 {[%emt 0:07:30]} Nb6 {[%emt 0:08:30]} 20. Qd3 {[%emt 0:04:30]} Rc8 {[%emt 0:27:30]} 21. Bxb6 {[%emt 0:13:51]} Qxb6 {[%emt 0:00:30]} 22. Nh2 {[%emt 0:01:35]} a5 {[%emt 0:10:30]} 23. bxa5 {[%emt 0:05:15]} Qxa5 {[%emt 0:00:30]} 24. Nf5 {[%emt 0:02:25]} Bxe4 {[%emt 0:08:30]} 25. Rxe4 {[%emt 0:00:05]} Rxc3 {[%emt 0:00:00]} 26. Nxh6+ {[%emt 0:00:04]} gxh6 {[%emt 0:02:00]} 27. Rg4+ {[%emt 0:00:03]} Kh8 {[%emt 0:05:30]} 28. Qf5 {[%emt 0:00:18]} Bg7 {[%emt 0:00:30]} 29. Bxf7 {[%emt 0:01:01]} Nxg4 {[%emt 0:07:32]} 30. Nxg4 {[%emt 0:01:25]} Qd8 {[%emt 0:02:18]} 31. Bxe8 {[%emt 0:00:10]} Qxe8 {[%emt 0:00:11]} 32. Nf6 {[%emt 0:00:06]} Bxf6 {[%emt 0:01:45]} 33. Qxf6+ {[%emt 0:00:08]} Kh7 {[%emt 0:00:05]} 34. Qxd6 {[%emt 0:00:02]} e4 {[%emt 0:00:29]} 35. Qf6 {[%emt 0:02:37]} Qc6 {[%emt 0:06:59]} 36. Qf7+ {[%emt 0:02:35]} Kh8 {[%emt 0:00:01]} 37. Qf4 {[%emt 0:00:05]} Kg7 {[%emt 0:04:12]} 38. Re1 {[%emt 0:00:35]} Rc4 {[%emt 0:00:24]} 39. Re3 {[%emt 0:00:12]} Qf6 {[%emt 0:00:03]} 40. Qg4+ {[%emt 0:00:56]} Kf8 {[%emt 0:00:15]} 41. Rg3 {[%emt 0:02:23]} e3 {[%emt 0:01:03]} 42. Qg8+ {[%emt 0:00:05]} 1-0

[Event "Konyaalti Open-A 2019"]
[Site "Konyaalti"]
[Date "2019.11.21"]
[Round "8.5"]
[White "Nigalidze, Gaioz"]
[Black "Garayev, Kanan"]
[Result "1-0"]
[ECO "D87"]
[WhiteElo "2472"]
[BlackElo "2338"]
[Annotator "ChessBase"]
[PlyCount "79"]
[EventDate "2019.11.20"]
[EventType "swiss"]
[EventCountry "TUR"]
[SourceTitle "playchess.com"]
[Source "ChessBase"]
[SourceQuality "1"]
[TimeControl "5400+30"]

1. d4 {[%emt 0:00:30]} Nf6 {[%emt 0:00:30]} 2. c4 {[%emt 0:00:30]} g6 {[%emt 0:00:00]} 3. Nc3 {[%emt 0:00:00]} d5 {[%emt 0:00:00]} 4. cxd5 {[%emt 0:00:00]} Nxd5 {[%emt 0:00:00]} 5. e4 {[%emt 0:00:00]} Nxc3 {[%emt 0:00:00]} 6. bxc3 {[%emt 0:00:00]} Bg7 {[%emt 0:00:30]} 7. Bc4 {[%emt 0:00:30]} O-O {[%emt 0:00:00]} 8. Ne2 {[%emt 0:00:00]} c5 {[%emt 0:00:00]} 9. O-O {[%emt 0:00:00]} Nc6 {[%emt 0:00:30]} 10. Be3 {[%emt 0:00:30]} Qc7 {[%emt 0:00:30]} 11. Rc1 {[%emt 0:00:30]} Rd8 {[%emt 0:00:30]} 12. Qd2 {[%emt 0:13:30]} b6 {[%emt 0:08:30]} 13. Qb2 {[%emt 0:04:30]} Na5 {[%emt 0:05:30]} 14. Bd3 {[%emt 0:00:00]} Bb7 {[%emt 0:04:30]} 15. Rfd1 {[%emt 0:14:00]} Rac8 {[%emt 0:05:30]} 16. f3 {[%emt 0:07:30]} cxd4 {[%emt 0:02:30]} 17. cxd4 {[%emt 0:00:30]} Qd7 {[%emt 0:01:30]} 18. Bb5 {[%emt 0:04:30]} Bc6 {[%emt 0:01:30]} 19. Bxc6 {[%emt 0:07:30]} Rxc6 {[%emt 0:05:30]} 20. Rxc6 {[%emt 0:01:30]} Nxc6 {[%emt 0:00:30]} 21. Qb5 {[%emt 0:03:30]} Rc8 {[%emt 0:05:30]} 22. Rc1 {[%emt 0:05:30]} Nb8 {[%emt 0:00:30]} 23. Rxc8+ {[%emt 0:03:30]} Qxc8 {[%emt 0:01:30]} 24. d5 {[%emt 0:00:30]} Qd7 {[%emt 0:01:30]} 25. Qc4 {[%emt 0:03:30]} e6 {[%emt 0:13:30]} 26. Bf4 {[%emt 0:06:30]} e5 {[%emt 0:00:30]} 27. Be3 {[%emt 0:00:30]} Bf8 {[%emt 0:01:30]} 28. Nc3 {[%emt 0:00:30]} Bc5 {[%emt 0:02:30]} 29. Bxc5 {[%emt 0:00:30]} Qc8 {[%emt 0:00:30]} 30. Na4 {[%emt 0:04:30]} Nd7 {[%emt 0:01:30]} 31. Qb5 {[%emt 0:00:39]} Nxc5 {[%emt 0:04:30]} 32. Nxc5 {[%emt 0:00:55]} bxc5 {[%emt 0:01:30]} 33. Qc6 {[%emt 0:00:51]} Qb8 {[%emt 0:01:30]} 34. h3 {[%emt 0:06:34]} Kg7 {[%emt 0:10:30]} 35. Qxc5 {[%emt 0:01:18]} Kf6 {[%emt 0:11:08]} 36. Kh2 {[%emt 0:00:50]} h5 {[%emt 0:06:08]} 37. d6 {[%emt 0:02:17]} Qb6 {[%emt 0:01:22]} 38. Qc7 {[%emt 0:00:29]} Qd4 {[%emt 0:01:04]} 39. Qe7+ {[%emt 0:00:49]} Kg7 {[%emt 0:00:01]} 40. d7 1-0

[Event "Konyaalti Open-A 2019"]
[Site "Konyaalti"]
[Date "2019.11.21"]
[Round "8.6"]
[White "Guliev, Sarhan"]
[Black "Haznedaroglu, Kivanc"]
[Result "0-1"]
[ECO "E91"]
[WhiteElo "2311"]
[BlackElo "2461"]
[Annotator "ChessBase"]
[PlyCount "88"]
[EventDate "2019.11.20"]
[EventType "swiss"]
[EventCountry "TUR"]
[SourceTitle "playchess.com"]
[Source "ChessBase"]
[SourceQuality "1"]
[TimeControl "5400+30"]

1. d4 {[%emt 0:04:30]} Nf6 {[%emt 0:00:30]} 2. c4 {[%emt 0:00:30]} g6 {[%emt 0:00:00]} 3. Nc3 {[%emt 0:00:00]} c5 {[%emt 0:00:00]} 4. d5 {[%emt 0:02:00]} Bg7 {[%emt 0:01:30]} 5. Nf3 {[%emt 0:00:30]} O-O {[%emt 0:00:30]} 6. e4 {[%emt 0:00:00]} e6 {[%emt 0:00:30]} 7. Be2 {[%emt 0:01:00]} exd5 {[%emt 0:09:30]} 8. exd5 {[%emt 0:02:30]} d6 {[%emt 0:00:00]} 9. O-O {[%emt 0:00:00]} Bg4 {[%emt 0:01:00]} 10. h3 {[%emt 0:00:00]} Bxf3 {[%emt 0:00:00]} 11. Bxf3 {[%emt 0:00:30]} a6 {[%emt 0:00:00]} 12. a4 {[%emt 0:00:00]} Nbd7 {[%emt 0:00:00]} 13. Be2 {[%emt 0:03:00]} Re8 {[%emt 0:01:00]} 14. Bg5 {[%emt 0:01:30]} Qc7 {[%emt 0:04:30]} 15. Qd2 {[%emt 0:08:30]} Ne4 {[%emt 0:04:30]} 16. Nxe4 {[%emt 0:00:30]} Rxe4 {[%emt 0:00:30]} 17. Bd3 {[%emt 0:07:30]} Ree8 {[%emt 0:00:00]} 18. Rab1 {[%emt 0:00:30]} Bd4 {[%emt 0:04:00]} 19. Kh1 {[%emt 0:02:30]} Ne5 {[%emt 0:01:30]} 20. Be2 {[%emt 0:09:30]} f5 {[%emt 0:01:30]} 21. b4 {[%emt 0:00:30]} b6 {[%emt 0:00:30]} 22. Rb3 {[%emt 0:07:30]} Qd7 {[%emt 0:08:30]} 23. bxc5 {[%emt 0:06:30]} Bxc5 {[%emt 0:02:30]} 24. a5 {[%emt 0:09:30]} bxa5 {[%emt 0:07:30]} 25. Qxa5 {[%emt 0:01:30]} Nf7 {[%emt 0:00:30]} 26. Be3 {[%emt 0:00:00]} Bxe3 {[%emt 0:00:30]} 27. fxe3 {[%emt 0:02:00]} Qa7 {[%emt 0:00:30]} 28. Qa3 {[%emt 0:09:30]} Re7 {[%emt 0:01:30]} 29. Rc1 {[%emt 0:08:23]} Rc7 {[%emt 0:05:30]} 30. e4 {[%emt 0:01:51]} Re8 {[%emt 0:02:30]} 31. Bf3 {[%emt 0:01:50]} fxe4 {[%emt 0:05:30]} 32. Bg4 {[%emt 0:00:09]} Qc5 {[%emt 0:00:30]} 33. Qa4 {[%emt 0:00:52]} Ree7 {[%emt 0:00:30]} 34. Be6 {[%emt 0:01:29]} Kg7 {[%emt 0:00:30]} 35. Rb8 {[%emt 0:03:14]} Qd4 {[%emt 0:01:30]} 36. Qxa6 {[%emt 0:02:48]} e3 {[%emt 0:20:28]} 37. Qa2 {[%emt 0:01:46]} Ng5 {[%emt 0:01:24]} 38. Rg8+ {[%emt 0:01:49]} Kh6 {[%emt 0:00:01]} 39. Bg4 {[%emt 0:01:02]} Ra7 {[%emt 0:01:19]} 40. Qe2 {[%emt 0:00:56]} Ra1 {[%emt 0:00:11]} 41. Rxa1 {[%emt 0:01:09]} Qxa1+ {[%emt 0:00:03]} 42. Kh2 {[%emt 0:00:18]} Qe5+ {[%emt 0:00:40]} 43. Kg1 {[%emt 0:00:01]} Ra7 {[%emt 0:00:13]} 44. Rf8 {[%emt 0:00:55]} Nf7 {[%emt 0:01:28]} 0-1

[Event "Konyaalti Open-A 2019"]
[Site "Konyaalti"]
[Date "2019.11.21"]
[Round "8.7"]
[White "Ozen, Deniz"]
[Black "Mammadov, Zaur"]
[Result "1/2-1/2"]
[ECO "B16"]
[WhiteElo "2422"]
[BlackElo "2421"]
[Annotator "ChessBase"]
[PlyCount "84"]
[EventDate "2019.11.20"]
[EventType "swiss"]
[EventCountry "TUR"]
[SourceTitle "playchess.com"]
[Source "ChessBase"]
[SourceQuality "1"]
[TimeControl "5400+30"]

1. e4 {[%emt 0:08:30]} c6 {[%emt 0:01:30]} 2. d4 {[%emt 0:00:30]} d5 {[%emt 0:00:00]} 3. Nc3 {[%emt 0:00:30]} dxe4 {[%emt 0:00:00]} 4. Nxe4 {[%emt 0:00:30]} Nf6 {[%emt 0:00:30]} 5. Nxf6+ {[%emt 0:00:00]} gxf6 {[%emt 0:00:30]} 6. c3 {[%emt 0:00:00]} h5 {[%emt 0:00:00]} 7. Nf3 {[%emt 0:07:30]} h4 {[%emt 0:00:00]} 8. h3 {[%emt 0:00:30]} Bf5 {[%emt 0:01:30]} 9. Bd3 {[%emt 0:03:30]} Bxd3 {[%emt 0:00:30]} 10. Qxd3 {[%emt 0:00:30]} e6 {[%emt 0:00:00]} 11. O-O {[%emt 0:06:30]} Bd6 {[%emt 0:14:00]} 12. Re1 {[%emt 0:00:30]} Nd7 {[%emt 0:00:30]} 13. c4 {[%emt 0:00:30]} Qc7 {[%emt 0:01:30]} 14. Qe4 {[%emt 0:08:30]} c5 {[%emt 0:07:30]} 15. d5 {[%emt 0:02:30]} O-O-O {[%emt 0:03:30]} 16. dxe6 {[%emt 0:00:30]} fxe6 {[%emt 0:00:30]} 17. Qxe6 {[%emt 0:00:30]} Kb8 {[%emt 0:00:30]} 18. Be3 {[%emt 0:01:30]} Ne5 {[%emt 0:01:30]} 19. Nxe5 {[%emt 0:01:30]} Bxe5 {[%emt 0:00:00]} 20. Qf5 {[%emt 0:01:30]} Rhg8 {[%emt 0:05:00]} 21. Rad1 {[%emt 0:04:30]} b6 {[%emt 0:16:30]} 22. Rxd8+ {[%emt 0:07:30]} Rxd8 {[%emt 0:00:30]} 23. b3 {[%emt 0:00:30]} Rg8 {[%emt 0:01:30]} 24. Kh1 {[%emt 0:00:30]} Qb7 {[%emt 0:00:30]} 25. f3 {[%emt 0:02:30]} Qg7 {[%emt 0:00:30]} 26. Qg4 {[%emt 0:00:30]} Qh7 {[%emt 0:00:30]} 27. Qe4 {[%emt 0:01:30]} Qg7 {[%emt 0:00:00]} 28. Qg4 {[%emt 0:01:30]} Qh7 {[%emt 0:00:00]} 29. Qe4 {[%emt 0:08:30]} Qxe4 {[%emt 0:05:30]} 30. fxe4 {[%emt 0:00:30]} Rd8 {[%emt 0:01:30]} 31. Bf2 {[%emt 0:13:20]} Bg3 {[%emt 0:02:30]} 32. Bxg3+ {[%emt 0:09:47]} hxg3 {[%emt 0:00:00]} 33. Kg1 {[%emt 0:00:21]} Rd2 {[%emt 0:04:00]} 34. Kf1 {[%emt 0:02:20]} Rf2+ {[%emt 0:02:30]} 35. Kg1 {[%emt 0:00:10]} Rxa2 {[%emt 0:00:30]} 36. Rf1 {[%emt 0:00:44]} Re2 {[%emt 0:00:00]} 37. Rxf6 {[%emt 0:00:22]} Re1+ {[%emt 0:00:00]} 38. Rf1 {[%emt 0:00:06]} Rxe4 {[%emt 0:00:30]} 39. Rf3 {[%emt 0:00:00]} Re1+ {[%emt 0:00:30]} 40. Rf1 {[%emt 0:00:01]} Re3 {[%emt 0:00:00]} 41. Rf3 {[%emt 0:00:17]} Re1+ {[%emt 0:00:00]} 42. Rf1 {[%emt 0:00:03]} Re3 {[%emt 0:00:00]} 1/2-1/2

[Event "Konyaalti Open-A 2019"]
[Site "Konyaalti"]
[Date "2019.11.21"]
[Round "8.8"]
[White "Yurtseven, Melih"]
[Black "Solozhenkina, Elizaveta"]
[Result "1/2-1/2"]
[ECO "E20"]
[WhiteElo "2388"]
[BlackElo "2314"]
[Annotator "ChessBase"]
[PlyCount "53"]
[EventDate "2019.11.20"]
[EventType "swiss"]
[EventCountry "TUR"]
[SourceTitle "playchess.com"]
[Source "ChessBase"]
[SourceQuality "1"]
[TimeControl "5400+30"]

1. d4 {[%emt 0:10:30]} Nf6 {[%emt 0:00:30]} 2. c4 {[%emt 0:00:30]} e6 {[%emt 0:00:30]} 3. Nc3 {[%emt 0:00:30]} Bb4 {[%emt 0:00:30]} 4. g3 {[%emt 0:00:00]} c5 {[%emt 0:07:30]} 5. Nf3 {[%emt 0:00:00]} cxd4 {[%emt 0:00:30]} 6. Nxd4 {[%emt 0:00:30]} O-O {[%emt 0:00:30]} 7. Nc2 {[%emt 0:05:30]} Bxc3+ {[%emt 0:07:30]} 8. bxc3 {[%emt 0:00:00]} d5 {[%emt 0:00:30]} 9. cxd5 {[%emt 0:10:00]} Nxd5 {[%emt 0:02:30]} 10. c4 {[%emt 0:09:30]} Nb6 {[%emt 0:06:30]} 11. Ba3 {[%emt 0:00:30]} Re8 {[%emt 0:01:30]} 12. Ne3 {[%emt 0:05:30]} Qg5 {[%emt 0:06:30]} 13. Qd2 {[%emt 0:09:30]} Nc6 {[%emt 0:14:30]} 14. h4 {[%emt 0:00:30]} Qf6 {[%emt 0:12:30]} 15. Rc1 {[%emt 0:02:30]} Rd8 {[%emt 0:04:30]} 16. Ng4 {[%emt 0:11:30]} Qg6 {[%emt 0:11:30]} 17. Qg5 {[%emt 0:00:30]} e5 {[%emt 0:00:00]} 18. Qxg6 {[%emt 0:00:30]} hxg6 {[%emt 0:00:00]} 19. Ne3 {[%emt 0:00:30]} Be6 {[%emt 0:00:30]} 20. h5 {[%emt 0:12:14]} gxh5 {[%emt 0:05:25]} 21. Rxh5 {[%emt 0:00:02]} Rac8 {[%emt 0:00:26]} 22. Bg2 {[%emt 0:06:05]} g6 {[%emt 0:08:51]} 23. Rh4 {[%emt 0:00:49]} Rd7 {[%emt 0:02:38]} 24. c5 {[%emt 0:12:31]} Nd5 {[%emt 0:00:04]} 25. Nc4 {[%emt 0:00:12]} f6 {[%emt 0:00:51]} 26. Nd6 {[%emt 0:00:35]} Rb8 {[%emt 0:00:22]} 27. Be4 1/2-1/2

[Event "Konyaalti Open-A 2019"]
[Site "Konyaalti"]
[Date "2019.11.21"]
[Round "8.9"]
[White "Bashirli, Nail"]
[Black "Kiremitciyan, Ari"]
[Result "1/2-1/2"]
[ECO "B26"]
[WhiteElo "2383"]
[BlackElo "2264"]
[Annotator "ChessBase"]
[PlyCount "86"]
[EventDate "2019.11.20"]
[EventType "swiss"]
[EventCountry "TUR"]
[SourceTitle "playchess.com"]
[Source "ChessBase"]
[SourceQuality "1"]
[TimeControl "5400+30"]

1. e4 {[%emt 0:18:30]} c5 {[%emt 0:00:30]} 2. Ne2 {[%emt 0:00:30]} Nc6 {[%emt 0:02:30]} 3. Nbc3 {[%emt 0:02:30]} g6 {[%emt 0:02:30]} 4. g3 {[%emt 0:00:30]} Bg7 {[%emt 0:00:30]} 5. Bg2 {[%emt 0:00:00]} e6 {[%emt 0:03:30]} 6. O-O {[%emt 0:05:00]} Nge7 {[%emt 0:00:30]} 7. d3 {[%emt 0:04:30]} d6 {[%emt 0:03:30]} 8. Be3 {[%emt 0:03:30]} Nd4 {[%emt 0:02:30]} 9. Qd2 {[%emt 0:00:00]} O-O {[%emt 0:01:30]} 10. f4 {[%emt 0:02:00]} f5 {[%emt 0:11:30]} 11. Nd1 {[%emt 0:01:30]} Rb8 {[%emt 0:05:30]} 12. c3 {[%emt 0:05:30]} Nxe2+ {[%emt 0:01:30]} 13. Qxe2 {[%emt 0:00:30]} b6 {[%emt 0:07:30]} 14. Nf2 {[%emt 0:19:30]} d5 {[%emt 0:09:30]} 15. exf5 {[%emt 0:00:30]} exf5 {[%emt 0:07:30]} 16. d4 {[%emt 0:02:30]} c4 {[%emt 0:00:30]} 17. Rae1 {[%emt 0:01:30]} Kh8 {[%emt 0:03:30]} 18. Bd2 {[%emt 0:04:30]} Ng8 {[%emt 0:01:30]} 19. Qf3 {[%emt 0:01:30]} Nf6 {[%emt 0:03:30]} 20. Re5 {[%emt 0:00:30]} Ne4 {[%emt 0:02:30]} 21. Nxe4 {[%emt 0:05:34]} fxe4 {[%emt 0:00:30]} 22. Qe2 {[%emt 0:05:30]} Bxe5 {[%emt 0:02:30]} 23. dxe5 {[%emt 0:00:41]} Be6 {[%emt 0:02:30]} 24. h3 {[%emt 0:02:11]} Qd7 {[%emt 0:02:30]} 25. Kh2 {[%emt 0:00:03]} Rf7 {[%emt 0:01:30]} 26. Be3 {[%emt 0:01:31]} Rbf8 {[%emt 0:00:30]} 27. Rd1 {[%emt 0:02:33]} Qc8 {[%emt 0:00:30]} 28. a4 {[%emt 0:03:18]} h5 {[%emt 0:05:00]} 29. Qe1 {[%emt 0:02:17]} Kg8 {[%emt 0:02:02]} 30. h4 {[%emt 0:00:20]} Qc6 {[%emt 0:01:35]} 31. Ra1 {[%emt 0:00:25]} Kh7 {[%emt 0:00:46]} 32. Bd2 {[%emt 0:01:22]} Bf5 {[%emt 0:00:51]} 33. Be3 {[%emt 0:00:39]} Rb7 {[%emt 0:00:56]} 34. Qd2 {[%emt 0:01:09]} a6 {[%emt 0:03:04]} 35. Bf1 {[%emt 0:02:39]} b5 {[%emt 0:02:39]} 36. axb5 {[%emt 0:01:40]} Rxb5 {[%emt 0:01:04]} 37. Ra2 {[%emt 0:01:00]} Rfb8 {[%emt 0:00:36]} 38. Qf2 {[%emt 0:00:01]} Qb7 {[%emt 0:00:59]} 39. Bc1 {[%emt 0:00:14]} Qb6 {[%emt 0:00:42]} 40. Be3 {[%emt 0:00:28]} Qb7 {[%emt 0:00:45]} 41. Bc1 {[%emt 0:00:01]} Qb6 {[%emt 0:00:00]} 42. Be3 {[%emt 0:00:45]} Qb7 {[%emt 0:00:05]} 43. Bc1 {[%emt 0:00:18]} a5 1/2-1/2

[Event "Konyaalti Open-A 2019"]
[Site "Konyaalti"]
[Date "2019.11.21"]
[Round "8.10"]
[White "Mammadova, Narmin"]
[Black "Osmak, Iulija"]
[Result "1/2-1/2"]
[ECO "C47"]
[WhiteElo "2282"]
[BlackElo "2401"]
[Annotator "ChessBase"]
[PlyCount "160"]
[EventDate "2019.11.20"]
[EventType "swiss"]
[EventCountry "TUR"]
[SourceTitle "playchess.com"]
[Source "ChessBase"]
[SourceQuality "1"]
[TimeControl "5400+30"]

1. e4 {[%emt 0:00:30]} e5 {[%emt 0:04:30]} 2. Nf3 {[%emt 0:00:30]} Nc6 {[%emt 0:00:30]} 3. Nc3 {[%emt 0:00:30]} Nf6 {[%emt 0:00:00]} 4. d4 {[%emt 0:00:30]} exd4 {[%emt 0:00:00]} 5. Nxd4 {[%emt 0:00:30]} Bc5 {[%emt 0:00:30]} 6. Nxc6 {[%emt 0:05:30]} bxc6 {[%emt 0:00:30]} 7. Bd3 {[%emt 0:00:00]} O-O {[%emt 0:01:30]} 8. O-O {[%emt 0:00:00]} d5 {[%emt 0:04:30]} 9. Bg5 {[%emt 0:05:30]} Be7 {[%emt 0:11:30]} 10. exd5 {[%emt 0:18:30]} Nxd5 {[%emt 0:04:30]} 11. Bxe7 {[%emt 0:01:30]} Nxe7 {[%emt 0:00:00]} 12. Qf3 {[%emt 0:00:30]} Be6 {[%emt 0:01:00]} 13. Rad1 {[%emt 0:03:30]} Qb8 {[%emt 0:04:30]} 14. b3 {[%emt 0:08:30]} Qb4 {[%emt 0:04:30]} 15. Qe4 {[%emt 0:14:30]} Qxe4 {[%emt 0:00:30]} 16. Bxe4 {[%emt 0:00:30]} Rad8 {[%emt 0:01:30]} 17. h3 {[%emt 0:07:30]} Rd6 {[%emt 0:01:30]} 18. Rxd6 {[%emt 0:06:30]} cxd6 {[%emt 0:00:30]} 19. f4 {[%emt 0:03:30]} g6 {[%emt 0:02:30]} 20. Rd1 {[%emt 0:01:30]} Rd8 {[%emt 0:01:30]} 21. Bf3 {[%emt 0:00:30]} Kg7 {[%emt 0:13:30]} 22. Kf2 {[%emt 0:02:26]} f5 {[%emt 0:03:30]} 23. Rd4 {[%emt 0:03:40]} Rd7 {[%emt 0:02:30]} 24. Rd2 {[%emt 0:01:59]} Kf6 {[%emt 0:01:30]} 25. g4 {[%emt 0:01:39]} h6 {[%emt 0:00:00]} 26. Kg3 {[%emt 0:02:40]} g5 {[%emt 0:06:00]} 27. Ne2 {[%emt 0:04:09]} d5 {[%emt 0:04:30]} 28. h4 {[%emt 0:03:59]} gxh4+ {[%emt 0:02:30]} 29. Kxh4 {[%emt 0:00:28]} fxg4 {[%emt 0:00:00]} 30. Bxg4 {[%emt 0:00:18]} Bxg4 {[%emt 0:00:00]} 31. Kxg4 {[%emt 0:00:02]} Nf5 {[%emt 0:00:30]} 32. Kf3 {[%emt 0:01:10]} Rg7 {[%emt 0:01:30]} 33. c4 {[%emt 0:01:00]} dxc4 {[%emt 0:03:30]} 34. bxc4 {[%emt 0:00:41]} h5 {[%emt 0:00:30]} 35. Rd8 {[%emt 0:01:35]} Re7 {[%emt 0:01:47]} 36. Rc8 {[%emt 0:00:35]} Kg7 {[%emt 0:02:29]} 37. Ng1 {[%emt 0:01:04]} Nd4+ {[%emt 0:02:53]} 38. Kf2 {[%emt 0:00:31]} Rb7 {[%emt 0:02:26]} 39. Nf3 {[%emt 0:00:31]} Rb2+ {[%emt 0:01:22]} 40. Ke3 {[%emt 0:00:30]} Nf5+ {[%emt 0:00:29]} 41. Kd3 {[%emt 0:00:02]} Rxa2 {[%emt 0:00:27]} 42. Rc7+ {[%emt 0:00:02]} Kg8 {[%emt 0:00:31]} 43. Ke4 {[%emt 0:01:02]} Nd6+ {[%emt 0:05:33]} 44. Ke5 {[%emt 0:00:05]} Nxc4+ {[%emt 0:00:45]} 45. Kf6 {[%emt 0:00:38]} Nb6 {[%emt 0:00:05]} 46. Rxc6 {[%emt 0:00:57]} Rf2 {[%emt 0:00:25]} 47. Ng5 {[%emt 0:00:36]} Nd5+ {[%emt 0:02:29]} 48. Ke5 {[%emt 0:00:31]} Nxf4 {[%emt 0:00:06]} 49. Rc4 {[%emt 0:00:38]} Ng6+ {[%emt 0:00:23]} 50. Ke6 {[%emt 0:00:17]} h4 {[%emt 0:00:58]} 51. Rc7 {[%emt 0:00:17]} a5 {[%emt 0:01:24]} 52. Ra7 {[%emt 0:00:05]} Nf8+ {[%emt 0:03:53]} 53. Ke5 {[%emt 0:00:06]} Rf1 {[%emt 0:00:45]} 54. Ke4 {[%emt 0:01:41]} Ng6 {[%emt 0:00:54]} 55. Rxa5 {[%emt 0:00:20]} Rf4+ {[%emt 0:00:29]} 56. Ke3 {[%emt 0:00:08]} Rf6 {[%emt 0:00:50]} 57. Ra7 {[%emt 0:00:38]} Rf5 {[%emt 0:00:09]} 58. Nh3 {[%emt 0:00:42]} Rb5 {[%emt 0:00:50]} 59. Kf3 {[%emt 0:00:30]} Rb3+ {[%emt 0:00:05]} 60. Kg4 {[%emt 0:00:46]} Rg3+ {[%emt 0:00:44]} 61. Kh5 {[%emt 0:00:15]} Kf8 {[%emt 0:00:18]} 62. Rb7 {[%emt 0:00:39]} Ne7 {[%emt 0:00:48]} 63. Ng5 {[%emt 0:00:36]} h3 {[%emt 0:00:34]} 64. Nh7+ {[%emt 0:00:30]} Ke8 {[%emt 0:00:30]} 65. Nf6+ {[%emt 0:00:16]} Kf7 {[%emt 0:00:28]} 66. Ng4 {[%emt 0:00:05]} Ke6 {[%emt 0:00:32]} 67. Rb6+ {[%emt 0:00:22]} Kf5 {[%emt 0:00:35]} 68. Rf6+ {[%emt 0:01:09]} Ke4 {[%emt 0:00:03]} 69. Kh4 {[%emt 0:00:29]} Rg1 {[%emt 0:00:58]} 70. Kxh3 {[%emt 0:00:27]} Nf5 {[%emt 0:00:28]} 71. Nf2+ {[%emt 0:00:29]} Kf4 {[%emt 0:00:07]} 72. Kh2 {[%emt 0:00:18]} Rg8 {[%emt 0:00:16]} 73. Nh3+ {[%emt 0:00:12]} Ke5 {[%emt 0:00:10]} 74. Ra6 {[%emt 0:00:30]} Ne3 {[%emt 0:00:30]} 75. Ra5+ {[%emt 0:00:47]} Ke4 {[%emt 0:00:07]} 76. Ng5+ {[%emt 0:00:38]} Kf4 {[%emt 0:00:06]} 77. Nh3+ {[%emt 0:00:20]} Kf3 {[%emt 0:00:07]} 78. Ng5+ {[%emt 0:00:42]} Kf2 {[%emt 0:00:26]} 79. Ra2+ {[%emt 0:00:33]} Kf1 {[%emt 0:00:16]} 80. Ra1+ {[%emt 0:00:14]} Kf2 {[%emt 0:00:27]} 1/2-1/2

[Event "Konyaalti Open-A 2019"]
[Site "Konyaalti"]
[Date "2019.11.22"]
[Round "9.4"]
[White "Lortkipanidze, Nodar"]
[Black "Ozen, Deniz"]
[Result "1/2-1/2"]
[ECO "D14"]
[WhiteElo "2377"]
[BlackElo "2422"]
[Annotator "ChessBase"]
[PlyCount "20"]
[EventDate "2019.11.20"]
[EventType "swiss"]
[EventCountry "TUR"]
[SourceTitle "playchess.com"]
[Source "ChessBase"]
[SourceQuality "1"]
[TimeControl "5400+30"]

1. d4 {[%emt 0:03:30]} d5 {[%emt 0:05:30]} 2. c4 {[%emt 0:00:30]} c6 {[%emt 0:00:00]} 3. cxd5 {[%emt 0:00:30]} cxd5 {[%emt 0:00:00]} 4. Nc3 {[%emt 0:00:00]} Nc6 {[%emt 0:00:30]} 5. Bf4 {[%emt 0:00:00]} Nf6 {[%emt 0:01:30]} 6. e3 {[%emt 0:00:30]} Bf5 {[%emt 0:00:30]} 7. Bd3 {[%emt 0:00:30]} Bxd3 {[%emt 0:00:30]} 8. Qxd3 {[%emt 0:00:00]} e6 {[%emt 0:00:00]} 9. Nf3 {[%emt 0:00:00]} Bd6 {[%emt 0:00:00]} 10. Bxd6 {[%emt 0:00:30]} Qxd6 1/2-1/2